fUST/lending_fUST_20240819
["ID","MTS","AMOUNT","RATE_DAILY","PERIOD"]
[335278638,1724064676346,-3685.64,0.00018082,2]
[335278639,1724064676355,-2913.53,0.00018082,2]
[335278640,1724064676364,-597.54,0.00018082,2]
[335278641,1724064676374,-1064.67,0.00018082,2]
[335278642,1724064676383,-1144.09,0.00018082,2]
[335278643,1724064676392,-500.0,0.00018082,2]
[335278644,1724064676402,-1364.06,0.00018082,2]
[335278645,1724064676412,-500.0,0.00018082,2]
[335278646,1724064676421,-500.0,0.00018082,2]
[335278647,1724064676430,-400.0,0.00018142,2]
[335278648,1724064676440,-400.0,0.00018142,2]
[335278649,1724064676449,-400.0,0.00018142,2]
[335278650,1724064676458,-425.77724944,0.00018142,2]
[335278651,1724064676467,-200.0,0.00018142,2]
[335278652,1724064676477,-3900.0,0.00018214,2]
[335278653,1724064676486,-260.25596194,0.00018268,2]
[335278654,1724064676495,-5000.0,0.00018272,2]
[335278655,1724064676505,-999.1,0.00018356,2]
[335278656,1724064676514,-500.0,0.00018356,2]
[335278657,1724064676523,-500.0,0.00018356,2]
[335278658,1724064676532,-635.16,0.00018356,2]
[335278659,1724064676542,-500.0,0.00018356,2]
[335278660,1724064676552,-591.86,0.00018356,2]
[335278661,1724064676561,-500.0,0.00018356,2]
[335278662,1724064676571,-500.0,0.00018356,2]
[335278663,1724064676580,-566.51,0.00018356,2]
[335278664,1724064676591,-500.0,0.00018356,2]
[335278665,1724064676602,-500.0,0.00018356,2]
[335278666,1724064676613,-500.0,0.00018356,2]
[335278667,1724064676623,-500.0,0.00018356,2]
[335278668,1724064676634,-500.0,0.00018356,2]
[335278669,1724064676644,-500.0,0.00018356,2]
[335278670,1724064676654,-500.0,0.00018356,2]
[335278671,1724064676664,-604.56,0.00018356,2]
[335278672,1724064676673,-1036.27,0.00018356,2]
[335278673,1724064676682,-876.01,0.00018356,2]
[335278674,1724064676691,-500.0,0.00018356,2]
[335278675,1724064676701,-920.14,0.00018356,2]
[335278676,1724064676711,-500.0,0.00018356,2]
[335278677,1724064676720,-924.92,0.00018356,2]
[335278678,1724064676730,-500.0,0.00018356,2]
[335278679,1724064676739,-500.0,0.00018356,2]
[335278680,1724064676751,-500.0,0.00018356,2]
[335278681,1724064676761,-500.0,0.00018356,2]
[335278682,1724064676771,-884.77,0.00018356,2]
[335278683,1724064676782,-1525.26,0.00018356,2]
[335278684,1724064676793,-500.0,0.00018356,2]
[335278685,1724064676803,-1240.07,0.00018356,2]
[335278686,1724064676812,-500.0,0.00018356,2]
[335278687,1724064676824,-500.0,0.00018356,2]
[335278688,1724064676836,-531.9,0.00018356,2]
[335278689,1724064676845,-341.37160666,0.00018356,2]
[335278690,1724064676855,-500.0,0.00018356,2]
[335278691,1724064676865,-254.91341418,0.00018356,2]
[335278692,1724064676874,-670.44,0.00018356,2]
[335278693,1724064676884,-2085.01,0.00018356,2]
[335278694,1724064676893,-406.3360328,0.00018356,2]
[335278695,1724064676903,-500.0,0.00018356,2]
[335278696,1724064676913,-972.73,0.00018356,2]
[335278697,1724064676923,-608.01,0.00018356,2]
[335278698,1724064676932,-627.13,0.00018356,2]
[335278699,1724064676941,-549.6,0.00018356,2]
[335278700,1724064676951,-571.47,0.00018356,2]
[335278701,1724064676961,-500.0,0.00018356,2]
[335278702,1724064676971,-500.0,0.00018356,2]
[335278703,1724064676982,-509.54,0.00018356,2]
[335278704,1724064676992,-1192.27,0.00018356,2]
[335278705,1724064677002,-500.0,0.00018356,2]
[335278706,1724064677011,-500.0,0.00018356,2]
[335278707,1724064677021,-868.49,0.00018356,2]
[335278708,1724064677031,-500.0,0.00018356,2]
[335278709,1724064677041,-833.76,0.00018356,2]
[335278710,1724064677051,-500.0,0.00018356,2]
[335278711,1724064677061,-500.0,0.00018356,2]
[335278712,1724064677070,-541.44,0.00018356,2]
[335278713,1724064677080,-680.14,0.00018356,2]
[335278714,1724064677091,-677.35,0.00018356,2]
[335278715,1724064677101,-500.0,0.00018356,2]
[335278716,1724064677111,-1037.09,0.00018356,2]
[335278717,1724064677121,-764.95,0.00018356,2]
[335278718,1724064677132,-235.60415071,0.00018356,2]
[335278719,1724064677143,-3205.11,0.00018356,2]
[335278720,1724064677154,-629.33,0.00018356,2]
[335278721,1724064677165,-500.0,0.00018356,2]
[335278722,1724064677175,-500.0,0.00018356,2]
[335278723,1724064677185,-500.0,0.00018356,2]
[335278724,1724064677196,-618.15,0.00018356,2]
[335278725,1724064677206,-500.0,0.00018356,2]
[335278726,1724064677216,-788.89,0.00018356,2]
[335278727,1724064677227,-501.1,0.00018356,2]
[335278728,1724064677238,-500.0,0.00018356,2]
[335278729,1724064677250,-500.0,0.00018356,2]
[335278730,1724064677261,-868.42,0.00018356,2]
[335278731,1724064677272,-945.19,0.00018356,2]
[335278732,1724064677282,-500.0,0.00018356,2]
[335278733,1724064677291,-924.86,0.00018356,2]
[335278734,1724064677303,-1050.73,0.00018356,2]
[335278735,1724064677314,-673.9,0.00018356,2]
[335278736,1724064677323,-571.61,0.00018356,2]
[335278737,1724064677335,-819.39,0.00018356,2]
[335278738,1724064677347,-513.12,0.00018356,2]
[335278739,1724064677356,-500.0,0.00018356,2]
[335278740,1724064677365,-500.0,0.00018356,2]
[335278741,1724064677374,-500.0,0.00018356,2]
[335278742,1724064677384,-1257.31,0.00018356,2]
[335278743,1724064677393,-651.1,0.00018356,2]
[335278744,1724064677403,-500.0,0.00018356,2]
[335278745,1724064677413,-800.57,0.00018356,2]
[335278746,1724064677422,-643.17,0.00018356,2]
[335278747,1724064677432,-500.0,0.00018356,2]
[335278748,1724064677563,-500.0,0.00018356,2]
[335278749,1724064677573,-891.67,0.00018356,2]
[335278750,1724064677582,-500.0,0.00018356,2]
[335278751,1724064677593,-734.44,0.00018356,2]
[335278752,1724064677602,-500.0,0.00018356,2]
[335278753,1724064677611,-500.0,0.00018356,2]
[335278754,1724064677621,-596.48,0.00018356,2]
[335278755,1724064677630,-991.23,0.00018356,2]
[335278756,1724064677640,-975.86,0.00018356,2]
[335278757,1724064677649,-500.0,0.00018356,2]
[335278758,1724064677659,-500.0,0.00018356,2]
[335278759,1724064677669,-1381.03,0.00018356,2]
[335278760,1724064677679,-500.0,0.00018356,2]
[335278761,1724064677688,-502.85,0.00018356,2]
[335278762,1724064677698,-500.0,0.00018356,2]
[335278763,1724064677708,-500.0,0.00018356,2]
[335278764,1724064677717,-530.34,0.00018356,2]
[335278765,1724064677726,-704.69,0.00018356,2]
[335278766,1724064677736,-883.26,0.00018356,2]
[335278767,1724064677746,-652.07,0.00018356,2]
[335278768,1724064677759,-613.05,0.00018356,2]
[335278769,1724064677769,-500.0,0.00018356,2]
[335278770,1724064677779,-500.0,0.00018356,2]
[335278771,1724064677789,-500.0,0.00018356,2]
[335278772,1724064677799,-644.74,0.00018356,2]
[335278773,1724064677809,-500.0,0.00018356,2]
[335278774,1724064677819,-500.0,0.00018356,2]
[335278775,1724064677832,-500.0,0.00018356,2]
[335278776,1724064677842,-500.0,0.00018356,2]
[335278777,1724064677853,-500.0,0.00018356,2]
[335278778,1724064677863,-500.0,0.00018356,2]
[335278779,1724064677873,-500.0,0.00018356,2]
[335278780,1724064677883,-500.0,0.00018356,2]
[335278781,1724064677893,-500.0,0.00018356,2]
[335278782,1724064677903,-627.32,0.00018356,2]
[335278783,1724064677913,-768.77,0.00018356,2]
[335278784,1724064677925,-1030.7,0.00018356,2]
[335278785,1724064677935,-751.5,0.00018356,2]
[335278786,1724064677945,-500.0,0.00018356,2]
[335278787,1724064677955,-669.42,0.00018356,2]
[335278788,1724064677965,-563.42,0.00018356,2]
[335278789,1724064677975,-500.0,0.00018356,2]
[335278790,1724064677985,-500.0,0.00018356,2]
[335278791,1724064677994,-563.05,0.00018356,2]
[335278792,1724064678005,-500.0,0.00018356,2]
[335278793,1724064678016,-500.0,0.00018356,2]
[335278794,1724064678025,-500.0,0.00018356,2]
[335278795,1724064678035,-500.0,0.00018356,2]
[335278796,1724064678045,-1159.42,0.00018356,2]
[335278797,1724064678056,-1058.32,0.00018356,2]
[335278798,1724064678067,-500.0,0.00018356,2]
[335278799,1724064678077,-500.0,0.00018356,2]
[335278800,1724064678087,-835.22,0.00018356,2]
[335278801,1724064678098,-1036.0,0.00018356,2]
[335278802,1724064678109,-500.0,0.00018356,2]
[335278803,1724064678119,-500.0,0.00018356,2]
[335278804,1724064678129,-641.44,0.00018356,2]
[335278805,1724064678138,-1629.15,0.00018356,2]
[335278806,1724064678149,-874.96,0.00018356,2]
[335278807,1724064678159,-679.46,0.00018356,2]
[335278808,1724064678169,-714.72,0.00018356,2]
[335278809,1724064678180,-650.75,0.00018356,2]
[335278810,1724064678190,-2792.23,0.00018356,2]
[335278811,1724064678199,-500.0,0.00018356,2]
[335278812,1724064678208,-500.0,0.00018356,2]
[335278813,1724064678219,-1304.87,0.00018356,2]
[335278814,1724064678228,-685.38,0.00018356,2]
[335278815,1724064678238,-999.6,0.00018356,2]
[335278816,1724064678248,-547.37,0.00018356,2]
[335278817,1724064678258,-500.0,0.00018356,2]
[335278818,1724064678268,-625.23,0.00018356,2]
[335278819,1724064678279,-500.0,0.00018356,2]
[335278820,1724064678289,-500.0,0.00018356,2]
[335278821,1724064678301,-500.0,0.00018356,2]
[335278822,1724064678311,-1241.89,0.00018356,2]
[335278823,1724064678321,-545.07,0.00018356,2]
[335278824,1724064678331,-500.0,0.00018356,2]
[335278825,1724064678341,-500.0,0.00018356,2]
[335278826,1724064678351,-500.0,0.00018356,2]
[335278827,1724064678361,-500.0,0.00018356,2]
[335278828,1724064678372,-200.0,0.00018356,2]
[335278829,1724064678383,-1810.25,0.00018356,2]
[335278830,1724064678393,-1703.86,0.00018356,2]
[335278831,1724064678404,-548.12,0.00018356,2]
[335278832,1724064678414,-253.09994068,0.00018356,2]
[335278833,1724064678423,-1465.02,0.00018356,2]
[335278834,1724064678434,-500.0,0.00018356,2]
[335278835,1724064678445,-500.0,0.00018356,2]
[335278836,1724064678456,-500.0,0.00018356,2]
[335278837,1724064678467,-810.71,0.00018356,2]
[335278838,1724064678478,-2823.37,0.00018356,2]
[335278839,1724064678489,-395.05101396,0.00018356,2]
[335278840,1724064678500,-500.0,0.00018356,2]
[335278841,1724064678512,-500.0,0.00018356,2]
[335278842,1724064678522,-500.0,0.00018356,2]
[335278843,1724064678532,-1950.34,0.00018356,2]
[335278844,1724064678541,-766.64,0.00018356,2]
[335278845,1724064678552,-1677.1,0.00018356,2]
[335278846,1724064678561,-611.4,0.00018356,2]
[335278847,1724064678572,-628.62,0.00018356,2]
[335278848,1724064678584,-500.0,0.00018356,2]
[335278849,1724064678594,-531.03,0.00018356,2]
[335278850,1724064678605,-500.0,0.00018356,2]
[335278851,1724064678616,-500.0,0.00018356,2]
[335278852,1724064678626,-1530.73,0.00018356,2]
[335278853,1724064678637,-754.52,0.00018356,2]
[335278854,1724064678648,-575.88,0.00018356,2]
[335278855,1724064678658,-955.98,0.00018356,2]
[335278856,1724064678668,-500.0,0.00018356,2]
[335278857,1724064678679,-574.44,0.00018356,2]
[335278858,1724064678690,-731.1,0.00018356,2]
[335278859,1724064678700,-500.0,0.00018356,2]
[335278860,1724064678710,-6498.62,0.00018356,2]
[335278861,1724064678721,-500.0,0.00018356,2]
[335278862,1724064678730,-500.0,0.00018356,2]
[335278863,1724064678741,-6412.2,0.00018356,2]
[335278864,1724064678755,-500.0,0.00018356,2]
[335278865,1724064678764,-500.0,0.00018356,2]
[335278866,1724064678774,-1017.23,0.00018356,2]
[335278867,1724064678786,-500.0,0.00018356,2]
[335278868,1724064678797,-500.0,0.00018356,2]
[335278869,1724064678807,-1833.35,0.00018356,2]
[335278870,1724064678818,-551.2,0.00018356,2]
[335278871,1724064678828,-500.0,0.00018356,2]
[335278872,1724064678839,-500.0,0.00018356,2]
[335278873,1724064678850,-500.0,0.00018356,2]
[335278874,1724064678860,-866.32,0.00018356,2]
[335278875,1724064678870,-1076.73,0.00018356,2]
[335278876,1724064678881,-552.95,0.00018356,2]
[335278877,1724064678892,-1738.28,0.00018356,2]
[335278878,1724064678902,-591.99,0.00018356,2]
[335278879,1724064678911,-556.23,0.00018356,2]
[335278880,1724064678920,-1070.93,0.00018356,2]
[335278881,1724064678931,-500.0,0.00018356,2]
[335278882,1724064678942,-500.0,0.00018356,2]
[335278883,1724064678952,-500.0,0.00018356,2]
[335278884,1724064678961,-1404.09,0.00018356,2]
[335278885,1724064678972,-527.24,0.00018356,2]
[335278886,1724064678982,-500.0,0.00018356,2]
[335278887,1724064678992,-4166.87,0.00018356,2]
[335278888,1724064679002,-549.76,0.00018356,2]
[335278889,1724064679012,-952.17,0.00018356,2]
[335278890,1724064679022,-523.47,0.00018356,2]
[335278891,1724064679033,-19615.05,0.00018356,2]
[335278892,1724064679043,-500.0,0.00018356,2]
[335278893,1724064679053,-1409.16,0.00018356,2]
[335278894,1724064679062,-967.54,0.00018356,2]
[335278895,1724064679072,-5418.3,0.00018356,2]
[335278896,1724064679082,-500.0,0.00018356,2]
[335278897,1724064679093,-500.0,0.00018356,2]
[335278898,1724064679103,-500.0,0.00018356,2]
[335278899,1724064679113,-500.0,0.00018356,2]
[335278900,1724064679123,-3020.65,0.00018356,2]
[335278901,1724064679134,-2059.25,0.00018356,2]
[335278902,1724064679145,-6249.43,0.00018356,2]
[335278903,1724064679154,-1358.47,0.00018356,2]
[335278904,1724064679165,-1833.6,0.00018356,2]
[335278905,1724064679176,-695.24,0.00018356,2]
[335278906,1724064679187,-1406.0,0.00018356,2]
[335278907,1724064679196,-521.48,0.00018356,2]
[335278908,1724064679207,-1476.87,0.00018356,2]
[335278909,1724064679218,-1523.28,0.00018356,2]
[335278910,1724064679230,-500.0,0.00018356,2]
[335278911,1724064679242,-2266.85,0.00018356,2]
[335278912,1724064679252,-500.0,0.00018356,2]
[335278913,1724064679262,-500.0,0.00018356,2]
[335278914,1724064679273,-1215.95,0.00018356,2]
[335278915,1724064679284,-734.72,0.00018356,2]
[335278916,1724064679296,-500.0,0.00018356,2]
[335278917,1724064679305,-729.24,0.00018356,2]
[335278918,1724064679315,-2145.28,0.00018356,2]
[335278919,1724064679326,-500.0,0.00018356,2]
[335278920,1724064679338,-1474.66,0.00018356,2]
[335278921,1724064679349,-165.25879482,0.00018356,2]
[335278922,1724064679360,-612.11,0.00018356,2]
[335278923,1724064679369,-2313.4,0.00018356,2]
[335278924,1724064679380,-1177.26,0.00018356,2]
[335278925,1724064679390,-500.0,0.00018356,2]
[335278926,1724064679401,-573.54,0.00018356,2]
[335278927,1724064679412,-500.0,0.00018356,2]
[335278928,1724064679424,-500.0,0.00018356,2]
[335278929,1724064679435,-500.0,0.00018356,2]
[335278930,1724064679445,-560.41,0.00018356,2]
[335278931,1724064679454,-2216.78,0.00018356,2]
[335278932,1724064679464,-1514.7,0.00018356,2]
[335278933,1724064679474,-835.68,0.00018356,2]
[335278934,1724064679484,-500.0,0.00018356,2]
[335278935,1724064679495,-3105.81,0.00018356,2]
[335278936,1724064679506,-500.0,0.00018356,2]
[335278937,1724064679517,-595.88,0.00018356,2]
[335278938,1724064679527,-1084.05,0.00018356,2]
[335278939,1724064679537,-500.0,0.00018356,2]
[335278940,1724064679547,-3685.64,0.00018356,2]
[335278941,1724064679556,-2913.53,0.00018356,2]
[335278942,1724064679566,-597.54,0.00018356,2]
[335278943,1724064679575,-1064.67,0.00018356,2]
[335278944,1724064679585,-1144.09,0.00018356,2]
[335278945,1724064679595,-1364.06,0.00018356,2]
[335278946,1724064679605,-500.0,0.00018356,2]
[335278947,1724064679614,-500.0,0.00018356,2]
[335278948,1724064679624,-15954.13759964,0.00018447,2]
[335278949,1724064679634,-1000.0,0.000185,2]
[335278950,1724064679643,-465.03528677,0.00018522,2]
[335278951,1724064679654,-30754.43342455,0.00018559,2]
[335278952,1724064679664,-500.0,0.00018607,2]
[335278953,1724064679674,-999.1,0.0001863,2]
[335278954,1724064679685,-500.0,0.0001863,2]
[335278955,1724064679696,-599.26239853,0.0001863,2]
[335278956,1724064679706,-635.16,0.0001863,2]
[335278957,1724064679716,-500.0,0.0001863,2]
[335278958,1724064679727,-591.86,0.0001863,2]
[335278959,1724064679738,-500.0,0.0001863,2]
[335278960,1724064679752,-500.0,0.0001863,2]
[335278961,1724064679764,-566.51,0.0001863,2]
[335278962,1724064679774,-500.0,0.0001863,2]
[335278963,1724064679786,-500.0,0.0001863,2]
[335278964,1724064679796,-500.0,0.0001863,2]
[335278965,1724064679806,-500.0,0.0001863,2]
[335278966,1724064679816,-500.0,0.0001863,2]
[335278967,1724064679827,-500.0,0.0001863,2]
[335278968,1724064679839,-500.0,0.0001863,2]
[335278969,1724064679859,-604.56,0.0001863,2]
[335278970,1724064679869,-1036.27,0.0001863,2]
[335278971,1724064679879,-876.01,0.0001863,2]
[335278972,1724064679889,-500.0,0.0001863,2]
[335278973,1724064679899,-920.14,0.0001863,2]
[335278974,1724064679909,-500.0,0.0001863,2]
[335278975,1724064679919,-924.92,0.0001863,2]
[335278976,1724064679930,-500.0,0.0001863,2]
[335278977,1724064679940,-500.0,0.0001863,2]
[335278978,1724064679950,-500.0,0.0001863,2]
[335278979,1724064679961,-436.3,0.0001863,2]
[335278980,1724064679971,-884.77,0.0001863,2]
[335278981,1724064679981,-1525.26,0.0001863,2]
[335278982,1724064679991,-237.16711602,0.0001863,2]
[335278983,1724064680002,-1240.07,0.0001863,2]
[335278984,1724064680013,-500.0,0.0001863,2]
[335278985,1724064680025,-531.9,0.0001863,2]
[335278986,1724064680034,-500.0,0.0001863,2]
[335278987,1724064680044,-670.44,0.0001863,2]
[335278988,1724064680053,-2085.01,0.0001863,2]
[335278989,1724064680063,-504.95,0.0001863,2]
[335278990,1724064680073,-608.01,0.0001863,2]
[335278991,1724064680082,-972.73,0.0001863,2]
[335278992,1724064680093,-627.13,0.0001863,2]
[335278993,1724064680102,-549.6,0.0001863,2]
[335278994,1724064680111,-571.47,0.0001863,2]
[335278995,1724064680120,-500.0,0.0001863,2]
[335278996,1724064680130,-500.0,0.0001863,2]
[335278997,1724064680140,-509.54,0.0001863,2]
[335278998,1724064680150,-1192.27,0.0001863,2]
[335278999,1724064680159,-500.0,0.0001863,2]
[335279000,1724064680169,-500.0,0.0001863,2]
[335279001,1724064680179,-868.49,0.0001863,2]
[335279002,1724064680189,-833.76,0.0001863,2]
[335279003,1724064680200,-500.0,0.0001863,2]
[335279004,1724064680210,-500.0,0.0001863,2]
[335279005,1724064680220,-541.44,0.0001863,2]
[335279006,1724064680231,-680.14,0.0001863,2]
[335279007,1724064680241,-677.35,0.0001863,2]
[335279008,1724064680251,-500.0,0.0001863,2]
[335279009,1724064680261,-1037.09,0.0001863,2]
[335279010,1724064680271,-764.95,0.0001863,2]
[335279011,1724064680282,-3205.11,0.0001863,2]
[335279012,1724064680292,-629.33,0.0001863,2]
[335279013,1724064680304,-500.0,0.0001863,2]
[335279014,1724064680313,-500.0,0.0001863,2]
[335279015,1724064680324,-500.0,0.0001863,2]
[335279016,1724064680334,-618.15,0.0001863,2]
[335279017,1724064680351,-500.0,0.0001863,2]
[335279018,1724064680362,-788.89,0.0001863,2]
[335279019,1724064680373,-501.1,0.0001863,2]
[335279020,1724064680383,-413.59225575,0.0001863,2]
[335279021,1724064680394,-500.0,0.0001863,2]
[335279022,1724064680406,-868.42,0.0001863,2]
[335279023,1724064680417,-945.19,0.0001863,2]
[335279024,1724064680429,-500.0,0.0001863,2]
[335279025,1724064680438,-924.86,0.0001863,2]
[335279026,1724064680448,-1050.73,0.0001863,2]
[335279027,1724064680458,-673.9,0.0001863,2]
[335279028,1724064680468,-571.61,0.0001863,2]
[335279029,1724064680479,-819.39,0.0001863,2]
[335279030,1724064680490,-513.12,0.0001863,2]
[335279031,1724064680500,-500.0,0.0001863,2]
[335279032,1724064680509,-500.0,0.0001863,2]
[335279033,1724064680520,-500.0,0.0001863,2]
[335279034,1724064680530,-1257.31,0.0001863,2]
[335279035,1724064680541,-651.1,0.0001863,2]
[335279036,1724064680551,-500.0,0.0001863,2]
[335279037,1724064680563,-800.57,0.0001863,2]
[335279038,1724064680573,-643.17,0.0001863,2]
[335279039,1724064680583,-500.0,0.0001863,2]
[335279040,1724064680594,-500.0,0.0001863,2]
[335279041,1724064680604,-891.67,0.0001863,2]
[335279042,1724064680613,-500.0,0.0001863,2]
[335279043,1724064680623,-734.44,0.0001863,2]
[335279044,1724064680634,-500.0,0.0001863,2]
[335279045,1724064680644,-500.0,0.0001863,2]
[335279046,1724064680655,-596.48,0.0001863,2]
[335279047,1724064680666,-991.23,0.0001863,2]
[335279048,1724064680675,-975.86,0.0001863,2]
[335279049,1724064680686,-500.0,0.0001863,2]
[335279050,1724064680697,-500.0,0.0001863,2]
[335279051,1724064680708,-1381.03,0.0001863,2]
[335279052,1724064680718,-500.0,0.0001863,2]
[335279053,1724064680729,-502.85,0.0001863,2]
[335279054,1724064680740,-500.0,0.0001863,2]
[335279055,1724064680753,-500.0,0.0001863,2]
[335279056,1724064680763,-530.34,0.0001863,2]
[335279057,1724064680774,-704.69,0.0001863,2]
[335279058,1724064680784,-883.26,0.0001863,2]
[335279059,1724064680918,-652.07,0.0001863,2]
[335279060,1724064680930,-613.05,0.0001863,2]
[335279061,1724064680940,-500.0,0.0001863,2]
[335279062,1724064680951,-273.10810945,0.0001863,2]
[335279063,1724064680961,-500.0,0.0001863,2]
[335279064,1724064680971,-644.74,0.0001863,2]
[335279065,1724064680980,-500.0,0.0001863,2]
[335279066,1724064680990,-500.0,0.0001863,2]
[335279067,1724064680999,-500.0,0.0001863,2]
[335279068,1724064681009,-500.0,0.0001863,2]
[335279069,1724064681018,-500.0,0.0001863,2]
[335279070,1724064681028,-500.0,0.0001863,2]
[335279071,1724064681037,-500.0,0.0001863,2]
[335279072,1724064681047,-500.0,0.0001863,2]
[335279073,1724064681056,-500.0,0.0001863,2]
[335279074,1724064681066,-627.32,0.0001863,2]
[335279075,1724064681076,-768.77,0.0001863,2]
[335279076,1724064681086,-1030.7,0.0001863,2]
[335279077,1724064681096,-751.5,0.0001863,2]
[335279078,1724064681105,-500.0,0.0001863,2]
[335279079,1724064681115,-669.42,0.0001863,2]
[335279080,1724064681125,-563.42,0.0001863,2]
[335279081,1724064681135,-500.0,0.0001863,2]
[335279082,1724064681145,-500.0,0.0001863,2]
[335279083,1724064681154,-563.05,0.0001863,2]
[335279084,1724064681165,-500.0,0.0001863,2]
[335279085,1724064681174,-500.0,0.0001863,2]
[335279086,1724064681184,-500.0,0.0001863,2]
[335279087,1724064681193,-500.0,0.0001863,2]
[335279088,1724064681203,-1159.42,0.0001863,2]
[335279089,1724064681212,-1058.32,0.0001863,2]
[335279090,1724064681222,-500.0,0.0001863,2]
[335279091,1724064681231,-500.0,0.0001863,2]
[335279092,1724064681240,-835.22,0.0001863,2]
[335279093,1724064681250,-1036.0,0.0001863,2]
[335279094,1724064681259,-500.0,0.0001863,2]
[335279095,1724064681269,-500.0,0.0001863,2]
[335279096,1724064681278,-1629.15,0.0001863,2]
[335279097,1724064681287,-874.96,0.0001863,2]
[335279098,1724064681297,-679.46,0.0001863,2]
[335279099,1724064681306,-714.72,0.0001863,2]
[335279100,1724064681315,-650.75,0.0001863,2]
[335279101,1724064681324,-2792.23,0.0001863,2]
[335279102,1724064681334,-500.0,0.0001863,2]
[335279103,1724064681343,-500.0,0.0001863,2]
[335279104,1724064681353,-1304.87,0.0001863,2]
[335279105,1724064681363,-685.38,0.0001863,2]
[335279106,1724064681372,-999.6,0.0001863,2]
[335279107,1724064681382,-547.37,0.0001863,2]
[335279108,1724064681391,-500.0,0.0001863,2]
[335279109,1724064681401,-625.23,0.0001863,2]
[335279110,1724064681411,-500.0,0.0001863,2]
[335279111,1724064681421,-500.0,0.0001863,2]
[335279112,1724064681430,-500.0,0.0001863,2]
[335279113,1724064681440,-1241.89,0.0001863,2]
[335279114,1724064681450,-545.07,0.0001863,2]
[335279115,1724064681459,-500.0,0.0001863,2]
[335279116,1724064681468,-500.0,0.0001863,2]
[335279117,1724064681477,-500.0,0.0001863,2]
[335279118,1724064681487,-500.0,0.0001863,2]
[335279119,1724064681496,-200.0,0.0001863,2]
[335279120,1724064681506,-1810.25,0.0001863,2]
[335279121,1724064681515,-1703.86,0.0001863,2]
[335279122,1724064681524,-1465.02,0.0001863,2]
[335279123,1724064681534,-548.12,0.0001863,2]
[335279124,1724064681543,-500.0,0.0001863,2]
[335279125,1724064681552,-500.0,0.0001863,2]
[335279126,1724064681562,-500.0,0.0001863,2]
[335279127,1724064681571,-810.71,0.0001863,2]
[335279128,1724064681580,-2823.37,0.0001863,2]
[335279129,1724064681591,-500.0,0.0001863,2]
[335279130,1724064681601,-500.0,0.0001863,2]
[335279131,1724064681611,-500.0,0.0001863,2]
[335279132,1724064681621,-1950.34,0.0001863,2]
[335279133,1724064681630,-766.64,0.0001863,2]
[335279134,1724064681639,-1677.1,0.0001863,2]
[335279135,1724064681649,-611.4,0.0001863,2]
[335279136,1724064681659,-628.62,0.0001863,2]
[335279137,1724064681668,-500.0,0.0001863,2]